fUSD/lending_fUSD_20240222
["ID","MTS","AMOUNT","RATE_DAILY","PERIOD"]
[314904407,1708625573295,-595.22,0.00034794,4]
[314904408,1708625573304,-578.71,0.00034794,4]
[314904409,1708625573313,-896.84,0.00034794,4]
[314904410,1708625573323,-579.72,0.00034794,4]
[314904411,1708625573332,-500.0,0.00034794,4]
[314904412,1708625573341,-802.17,0.00034794,4]
[314904413,1708625573350,-999.86,0.00034794,4]
[314904414,1708625573360,-2641.23,0.00034794,4]
[314904415,1708625573369,-3363.68,0.00034794,4]
[314904416,1708625573378,-500.0,0.00034794,4]
[314904417,1708625573387,-500.0,0.00034794,4]
[314904418,1708625573396,-522.87,0.00034794,4]
[314904419,1708625573405,-879.41,0.00034794,4]
[314904420,1708625573414,-922.6,0.00034794,4]
[314904421,1708625573425,-1225.83,0.00034794,4]
[314904422,1708625573435,-7827.29,0.00034794,4]
[314904423,1708625573444,-708.41,0.00034794,4]
[314904424,1708625573453,-2799.21,0.00034794,4]
[314904425,1708625573462,-4523.83,0.00034794,4]
[314904426,1708625573471,-1375.3,0.00034794,4]
[314904427,1708625573481,-4862.62,0.00034794,4]
[314904428,1708625573490,-735.21,0.00034794,4]
[314904429,1708625573500,-757.98,0.00034794,4]
[314904430,1708625573509,-346.61,0.00034794,4]
[314904431,1708625573518,-3270.53,0.00034794,4]
[314904432,1708625573527,-876.68,0.00034794,4]
[314904433,1708625573536,-2130.22,0.00034794,4]
[314904434,1708625573545,-3006.31,0.00034794,4]
[314904435,1708625573555,-5087.25,0.00034794,4]
[314904436,1708625573564,-500.0,0.00034794,4]
[314904437,1708625573573,-869.35,0.00034794,4]
[314904438,1708625573582,-1701.19,0.00034794,4]
[314904439,1708625573592,-1542.31,0.00034794,4]
[314904440,1708625573602,-1144.38,0.00034794,4]
[314904441,1708625573611,-14297.7,0.00034794,4]
[314904442,1708625573620,-10191.48,0.00034794,4]
[314904443,1708625573629,-870.84,0.00034794,4]
[314904444,1708625573639,-1739.37,0.00034794,4]
[314904445,1708625573649,-1219.49,0.00034794,4]
[314904446,1708625573658,-500.0,0.00034794,4]
[314904447,1708625573667,-662.36,0.00034794,4]
[314904448,1708625573677,-5320.7,0.00034794,4]
[314904449,1708625573686,-1389.1,0.00034794,4]
[314904450,1708625573695,-1178.0,0.00034794,4]
[314904451,1708625573704,-4535.27,0.00034794,4]
[314904452,1708625573714,-1510.56,0.00034794,4]
[314904453,1708625573723,-574.08,0.00034794,4]
[314904454,1708625573733,-500.0,0.00034794,4]
[314904455,1708625573742,-913.43,0.00034794,4]
[314904456,1708625573753,-957.57,0.00034794,4]
[314904457,1708625573762,-1132.71,0.00034794,4]
[314904458,1708625573771,-1840.14,0.00034794,4]
[314904459,1708625573781,-500.0,0.00034794,4]
[314904460,1708625573791,-310.75812512,0.00034794,4]
[314904461,1708625573801,-1105.16,0.00034794,4]
[314904462,1708625573810,-8688.16,0.00034794,4]
[314904463,1708625573819,-1035.38,0.00034794,4]
[314904464,1708625573829,-856.33,0.00034794,4]
[314904465,1708625573838,-500.0,0.00034794,4]
[314904466,1708625573847,-597.54,0.00034794,4]
[314904467,1708625573856,-1031.07,0.00034794,4]
[314904468,1708625573866,-607.73,0.00034794,4]
[314904469,1708625573875,-4152.62,0.00034794,4]
[314904470,1708625573884,-4573.59,0.00034794,4]
[314904471,1708625573896,-5220.29,0.00034794,4]
[314904472,1708625573905,-1750.52,0.00034794,4]
[314904473,1708625573915,-500.0,0.00034794,4]
[314904474,1708625573924,-740.42,0.00034794,4]
[314904475,1708625573934,-543.8,0.00034794,4]
[314904476,1708625573943,-27929.76,0.00034794,4]
[314904477,1708625573952,-579.71,0.00034794,4]
[314904478,1708625573962,-500.0,0.00034794,4]
[314904479,1708625573972,-769.4,0.00034794,4]
[314904480,1708625573981,-500.0,0.00034794,4]
[314904481,1708625573990,-3104.43,0.00034794,4]
[314904482,1708625574000,-500.0,0.00034794,4]
[314904483,1708625574009,-31733.49,0.00034794,4]
[314904484,1708625574018,-2557.13,0.00034794,4]
[314904485,1708625574027,-763.62,0.00034794,4]
[314904486,1708625574037,-2617.91,0.00034794,4]
[314904487,1708625574047,-635.4,0.00034794,4]
[314904488,1708625574057,-1402.56,0.00034794,4]
[314904489,1708625574067,-10076.31,0.00034794,4]
[314904490,1708625574077,-719.16,0.00034794,4]
[314904491,1708625574086,-500.0,0.00034794,4]
[314904492,1708625574096,-549.71,0.00034794,4]
[314904493,1708625574105,-815.24,0.00034794,4]
[314904494,1708625574114,-540.22,0.00034794,4]
[314904495,1708625574125,-10365.29,0.00034794,4]
[314904496,1708625574135,-1908.5,0.00034794,4]
[314904497,1708625574144,-500.0,0.00034794,4]
[314904498,1708625574153,-1930.81,0.00034794,4]
[314904499,1708625574162,-1831.86,0.00034794,4]
[314904500,1708625574172,-4645.8,0.00034794,4]
[314904501,1708625574181,-1019.93,0.00034794,4]
[314904502,1708625574191,-500.0,0.00034794,4]
[314904503,1708625574200,-831.39,0.00034794,4]
[314904504,1708625574211,-1113.04,0.00034794,4]
[314904505,1708625574220,-2272.34,0.00034794,4]
[314904506,1708625574229,-703.63,0.00034794,4]
[314904507,1708625574239,-19048.88,0.00034794,4]
[314904508,1708625574248,-899.16,0.00034794,4]
[314904509,1708625574258,-1790.32,0.00034794,4]
[314904510,1708625574267,-3342.93,0.00034794,4]
[314904511,1708625574276,-6652.12,0.00034794,4]
[314904512,1708625574286,-1083.4,0.00034794,4]
[314904513,1708625574297,-500.0,0.00034794,4]
[314904514,1708625574306,-500.0,0.00034794,4]
[314904515,1708625574315,-566.02,0.00034794,4]
[314904516,1708625574326,-612.06,0.00034794,4]
[314904517,1708625574335,-500.0,0.00034794,4]
[314904518,1708625574344,-2397.11,0.00034794,4]
[314904519,1708625574353,-3448.92,0.00034794,4]
[314904520,1708625574363,-668.81,0.00034794,4]
[314904521,1708625574373,-588.46,0.00034794,4]
[314904522,1708625574382,-890.14,0.00034794,4]
[314904523,1708625574392,-504.65,0.00034794,4]
[314904524,1708625574401,-1569.54,0.00034794,4]
[314904525,1708625574410,-2839.46,0.00034794,4]
[314904526,1708625574420,-1599.27,0.00034794,4]
[314904527,1708625574430,-12262.15,0.00034794,4]
[314904528,1708625574440,-500.0,0.00034794,4]
[314904529,1708625574450,-603.26,0.00034794,4]
[314904530,1708625574459,-684.48,0.00034794,4]
[314904531,1708625574469,-4428.36,0.00034794,4]
[314904532,1708625574479,-11511.86,0.00034794,4]
[314904533,1708625574489,-2710.14,0.00034794,4]
[314904534,1708625574498,-13857.62,0.00034794,4]
[314904535,1708625574507,-1092.92,0.00034794,4]
[314904536,1708625574517,-500.0,0.00034794,4]
[314904537,1708625574526,-1594.69,0.00034794,4]
[314904538,1708625574535,-500.0,0.00034794,4]
[314904539,1708625574544,-935.58,0.00034794,4]
[314904540,1708625574553,-543.61,0.00034794,4]
[314904541,1708625574563,-500.0,0.00034794,4]
[314904542,1708625574572,-787.78,0.00034794,4]
[314904543,1708625574581,-500.0,0.00034794,4]
[314904544,1708625574590,-952.32,0.00034794,4]
[314904545,1708625574599,-12927.16,0.00034794,4]
[314904546,1708625574608,-15657.06,0.00034794,4]
[314904547,1708625574617,-1397.23,0.00034794,4]
[314904548,1708625574626,-734.09,0.00034794,4]
[314904549,1708625574636,-500.0,0.00034794,4]
[314904550,1708625574644,-638.64,0.00034794,4]
[314904551,1708625574653,-500.0,0.00034794,4]
[314904552,1708625574663,-1622.99,0.00034794,4]
[314904553,1708625574672,-2266.68,0.00034794,4]
[314904554,1708625574681,-2464.49,0.00034794,4]
[314904555,1708625574690,-500.0,0.00034794,4]
[314904556,1708625574699,-1572.14,0.00034794,4]
[314904557,1708625574708,-500.0,0.00034794,4]
[314904558,1708625574717,-1658.88,0.00034794,4]
[314904559,1708625574726,-1524.56,0.00034794,4]
[314904560,1708625574735,-802.87,0.00034794,4]
[314904561,1708625574744,-631.35,0.00034794,4]
[314904562,1708625574755,-500.0,0.00034794,4]
[314904563,1708625574764,-795.52,0.00034794,4]
[314904564,1708625574773,-6459.32,0.00034794,4]
[314904565,1708625574782,-3708.97,0.00034794,4]
[314904566,1708625574791,-1063.1,0.00034794,4]
[314904567,1708625574800,-8548.5,0.00034794,4]
[314904568,1708625574810,-833.35,0.00034794,4]
[314904569,1708625574819,-619.16,0.00034794,4]
[314904570,1708625574828,-559.93,0.00034794,4]
[314904571,1708625574837,-725.96,0.00034794,4]
[314904572,1708625574848,-8589.16,0.00034794,4]
[314904573,1708625574859,-500.0,0.00034794,4]
[314904574,1708625574869,-885.04,0.00034794,4]
[314904575,1708625574879,-695.88,0.00034794,4]
[314904576,1708625574891,-1529.13,0.00034794,4]
[314904577,1708625574903,-1152.72,0.00034794,4]
[314904578,1708625574913,-3657.93,0.00034794,4]
[314904579,1708625574923,-1521.37,0.00034794,4]
[314904580,1708625574933,-500.0,0.00034794,4]
[314904581,1708625574942,-649.89,0.00034794,4]
[314904582,1708625574951,-1012.78,0.00034794,4]
[314904583,1708625574961,-982.4,0.00034794,4]
[314904584,1708625574970,-1281.51,0.00034794,4]
[314904585,1708625574980,-757.3,0.00034794,4]
[314904586,1708625574989,-548.38,0.00034794,4]
[314904587,1708625575000,-500.0,0.00034794,4]
[314904588,1708625575010,-2156.76,0.00034794,4]
[314904589,1708625575019,-2549.51,0.00034794,4]
[314904590,1708625575029,-753.97,0.00034794,4]
[314904591,1708625575039,-500.0,0.00034794,4]
[314904592,1708625575049,-2213.41,0.00034794,4]
[314904593,1708625575058,-5006.44,0.00034794,4]
[314904594,1708625575068,-500.0,0.00034794,4]
[314904595,1708625575077,-4381.7,0.00034794,4]
[314904596,1708625575087,-1083.67,0.00034794,4]
[314904597,1708625575096,-2631.91,0.00034794,4]
[314904598,1708625575105,-928.82,0.00034794,4]
[314904599,1708625575114,-1050.11,0.00034794,4]
[314904600,1708625575123,-988.3,0.00034794,4]
[314904601,1708625575133,-553.85,0.00034794,4]
[314904602,1708625575142,-1569.8,0.00034794,4]
[314904603,1708625575152,-1347.04,0.00034794,4]
[314904604,1708625575162,-1930.76,0.00034794,4]
[314904605,1708625575171,-654.06,0.00034794,4]
[314904606,1708625575181,-1578.95,0.00034794,4]
[314904607,1708625575191,-1152.52,0.00034794,4]
[314904608,1708625575200,-1562.64,0.00034794,4]
[314904609,1708625575210,-13046.67,0.00034794,4]
[314904610,1708625575219,-554.48,0.00034794,4]
[314904611,1708625575229,-5718.46,0.00034794,4]
[314904612,1708625575238,-585.24,0.00034794,4]
[314904613,1708625575249,-1143.61,0.00034794,4]
[314904614,1708625575258,-3703.9,0.00034794,4]
[314904615,1708625575267,-500.0,0.00034794,4]
[314904616,1708625575276,-845.41,0.00034794,4]
[314904617,1708625575285,-4320.81,0.00034794,4]
[314904618,1708625575294,-1239.69,0.00034794,4]
[314904619,1708625575303,-842.27,0.00034794,4]
[314904620,1708625575313,-968.09,0.00034794,4]
[314904621,1708625575323,-1082.3,0.00034794,4]
[314904622,1708625575332,-2562.83,0.00034794,4]
[314904623,1708625575341,-2763.17,0.00034794,4]
[314904624,1708625575350,-1672.02,0.00034794,4]
[314904625,1708625575360,-500.0,0.00034794,4]
[314904626,1708625575369,-850.13,0.00034794,4]
[314904627,1708625575378,-668.88,0.00034794,4]
[314904628,1708625575388,-500.0,0.00034794,4]
[314904629,1708625575396,-1634.02,0.00034794,4]
[314904630,1708625575406,-1279.14,0.00034794,4]
[314904631,1708625575415,-3311.96,0.00034794,4]
[314904632,1708625575425,-2625.59,0.00034794,4]
[314904633,1708625575435,-619.14,0.00034794,4]
[314904634,1708625575444,-1635.09,0.00034794,4]
[314904635,1708625575454,-2609.74,0.00034794,4]
[314904636,1708625575463,-930.33,0.00034794,4]
[314904637,1708625575473,-3610.42,0.00034794,4]
[314904638,1708625575483,-1343.66,0.00034794,4]
[314904639,1708625575493,-1380.71,0.00034794,4]
[314904640,1708625575503,-53820.06434914,0.00034796,2]
[314904641,1708625575513,-243310.55458864,0.00034796,2]
[314904642,1708625575522,-156808.24252657,0.000348,10]
[314904643,1708625575531,-639933.47650866,0.000348,5]
[314904644,1708625576317,-500.0,0.00033287,4]
[314904645,1708625576326,-82255.62552751,0.000348,5]
[314904646,1708625577220,-528.67239776,0.0002968,2]
[314904647,1708625577230,-5000.0,0.0002978,2]
[314904648,1708625577240,-165.62,0.0003008,2]
[314904649,1708625577249,-165.62,0.00031644,2]
[314904650,1708625577260,-1957.81079521,0.00032776,2]
[314904651,1708625577270,-500.0,0.00032876,2]
[314904652,1708625577280,-527.36442388,0.00032876,2]
[314904653,1708625577290,-500.0,0.00032876,2]
[314904654,1708625577300,-187.799838,0.00032877,7]
[314904655,1708625577311,-187.799838,0.00032877,7]
[314904656,1708625577322,-500.0,0.00033013,4]
[314904657,1708625577331,-500.0,0.00033013,4]
[314904658,1708625577342,-187.799838,0.00033013,7]
[314904659,1708625577351,-187.799838,0.00033013,7]
[314904660,1708625577362,-1058.44,0.0003315,4]
[314904661,1708625577372,-156.45980615,0.0003315,4]
[314904662,1708625578107,-270.00000002,0.00029679,2]
[314904663,1708625578117,-476.872415,0.00032876,2]
[314904664,1708625578213,-152.907585,0.00032876,2]
[314904665,1708625578223,-500.0,0.00032876,2]
[314904666,1708625578233,-542.07,0.00032876,2]
[314904667,1708625578243,-629.78,0.00033013,4]
[314904668,1708625578253,-542.07,0.00033013,4]
[314904669,1708625578263,-343.54019385,0.0003315,4]
[314904670,1708625578272,-268.43222115,0.0003315,4]
[314904672,1708626269017,203.45,0.0002467,2]
[314904693,1708626632242,-155.0,0.00028446,2]
[314904694,1708626632252,-3049.23440343,0.00028446,2]
[314904695,1708626632262,-39042.57671666,0.00028447,2]
[314904696,1708626632314,-3939.07253238,0.00028447,2]
[314904697,1708626632333,-419.99898966,0.00028447,2]
[314904698,1708626632343,-476.36933986,0.00028448,2]
[314904699,1708626632374,-200.58676014,0.00028448,2]
[314904700,1708626632384,-300.0,0.00028448,2]
[314904701,1708626632394,-158.55805009,0.00028449,2]
[314904702,1708626632404,-541.15759714,0.00028548,2]
[314904703,1708626632415,-541.15759714,0.00028548,2]
[314904704,1708626632426,-541.15759714,0.00028548,2]
[314904705,1708626632436,-353.51,0.0002855,2]
[314904706,1708626632446,-416.13,0.00028873,2]
[314904707,1708626632457,-158.55805005,0.00029342,2]
[314904708,1708626632470,-2424.0915,0.0002962,2]
[314904709,1708626632480,-312.78337604,0.0003,4]
[314904710,1708626632490,-760.8,0.0003,2]
[314904711,1708626632500,-204.0,0.00030158,2]
[314904713,1708626632510,-2000.0,0.00030228,2]
[314904715,1708626632520,-250.0,0.00030229,2]
[314904717,1708626632529,-158.55805005,0.00030235,2]
[314904719,1708626632540,-500.0,0.00030276,2]
[314904721,1708626632549,-150.0,0.00030294,2]
[314904723,1708626632559,-430.37,0.00030305,2]
[314904725,1708626632569,-250.0,0.0003038,2]
[314904728,1708626632578,-2117.63,0.00030516,2]
[314904731,1708626632587,-200.0,0.00030525,2]
[314904733,1708626632596,-7412.06792764,0.00030525,2]
[314904737,1708626632608,-577.89161795,0.00030525,2]
[314904740,1708626632620,-323.75358582,0.00030525,2]
[314904743,1708626632632,-908.15686859,0.00030525,2]
[314904746,1708626632642,-46.8354569,0.00030554,2]
[314904749,1708626632655,-1656.63570032,0.00030554,2]
[314904752,1708626632676,-7048.38946821,0.00030554,2]
[314904754,1708626632688,-358.85125374,0.00030554,2]
[314904756,1708626632700,-10533.63762,0.00030554,2]
[314904759,1708626632714,-4255.65050083,0.00030554,2]
[314904761,1708626632726,-200.0,0.00030588,2]
[314904763,1708626632736,-633.49,0.00030632,2]
[314904764,1708626632746,-394.93,0.00030824,2]
[314904765,1708626632756,-506.34,0.00030838,2]
[314904766,1708626632765,-173.72,0.00030861,2]
[314904767,1708626632775,-1066.62,0.0003087,2]
[314904769,1708626632784,-200.0,0.0003087,2]
[314904771,1708626632794,-183.04,0.0003087,10]
[314904773,1708626632804,-500.0,0.00030879,2]
[314904775,1708626632813,-3685.1487,0.00030882,2]
[314904777,1708626632822,-600.10713488,0.00030986,2]
[314904781,1708626632848,-199.89286512,0.00030986,2]
[314904782,1708626632858,-10595.04,0.00031,2]
[314904783,1708626632868,-506.34,0.00031016,2]
[314904784,1708626632877,-181.65,0.00031109,2]
[314904785,1708626632887,-158.55805005,0.00031127,2]
[314904786,1708626632897,-416.13,0.00031137,2]
[314904787,1708626632907,-366.51,0.0003114,2]
[314904788,1708626632916,-506.34,0.00031194,2]
[314904789,1708626632926,-499.99,0.0003122,2]
[314904790,1708626632935,-289.8076,0.00031373,2]
[314904791,1708626632944,-506.34,0.00031373,2]
[314904792,1708626632954,-213.34,0.00031393,2]
[314904793,1708626632963,-173.72,0.00031473,2]
[314904794,1708626632976,-506.34,0.00031551,2]
[314904795,1708626632985,-151.0,0.00031681,2]
[314904796,1708626632995,-506.34,0.00031729,2]
[314904797,1708626633005,-1792.76,0.00031799,2]
[314904798,1708626633015,-506.34,0.00031907,2]
[314904799,1708626633025,-10590.0,0.00032,2]
[314904800,1708626633036,-397.19248904,0.00032,2]
[314904801,1708626633046,-397.19248904,0.00032,2]
[314904802,1708626633055,-397.19248904,0.00032,2]
[314904803,1708626633065,-397.19248904,0.00032,2]
[314904804,1708626633074,-397.19248904,0.00032,2]
[314904805,1708626633083,-397.19248904,0.00032,2]
[314904806,1708626633093,-397.19248904,0.00032,2]
[314904807,1708626633104,-397.19248904,0.00032,2]
[314904808,1708626633113,-397.19248904,0.00032,2]
[314904809,1708626633123,-397.19248904,0.00032,2]
[314904810,1708626633132,-397.19248904,0.00032,2]
[314904811,1708626633142,-397.19248904,0.00032,2]
[314904812,1708626633151,-397.19248904,0.00032,2]
[314904813,1708626633160,-397.19248904,0.00032,2]
[314904814,1708626633170,-397.19248904,0.00032,2]
[314904815,1708626633180,-397.19248904,0.00032,2]
[314904816,1708626633189,-158.55805005,0.0003202,2]
[314904817,1708626633199,-506.34,0.00032085,2]
[314904818,1708626633208,-1509.4804,0.00032122,2]
[314904819,1708626633219,-397.19248904,0.00032171,2]
[314904820,1708626633230,-397.19248904,0.00032171,2]
[314904821,1708626633240,-397.19248904,0.00032171,2]
[314904822,1708626633249,-397.19248904,0.00032171,2]
[314904823,1708626633259,-397.19248904,0.00032171,2]
[314904824,1708626633271,-397.19248904,0.00032171,2]
[314904825,1708626633281,-397.19248904,0.00032171,2]
[314904826,1708626633291,-397.19248904,0.00032171,2]
[314904827,1708626633301,-397.19248904,0.00032171,2]
[314904828,1708626633311,-397.19248904,0.00032171,2]
[314904829,1708626633321,-397.19248904,0.00032171,2]
[314904830,1708626633330,-397.19248904,0.00032171,2]
[314904831,1708626633338,-1231.0,0.00032181,2]
[314904832,1708626633348,-1953.0,0.00032181,2]
[314904833,1708626633357,-1257.0,0.00032181,2]
[314904834,1708626633367,-216.0,0.00032181,2]
[314904835,1708626633377,-600.0,0.00032181,2]
[314904836,1708626633386,-430.0,0.00032181,2]
[314904837,1708626633397,-276.0,0.00032181,2]
[314904838,1708626633408,-1007.0,0.00032181,2]
[314904839,1708626633418,-859.0,0.00032181,2]
[314904840,1708626633427,-2890.0,0.00032181,2]
[314904841,1708626633436,-302.0,0.00032181,2]
[314904842,1708626633445,-1138.0,0.00032181,2]
[314904843,1708626633454,-322.0,0.00032181,2]
[314904844,1708626633464,-338.0,0.00032181,2]
[314904845,1708626633474,-390.0,0.00032181,2]
[314904846,1708626633484,-455.0,0.00032181,2]
[314904847,1708626633493,-2763.957,0.00032181,2]
[314904848,1708626633502,-8180.0,0.00032181,2]
[314904849,1708626633511,-1869.0,0.00032181,2]
[314904850,1708626633520,-1372.0,0.00032181,2]
[314904851,1708626633529,-19886.0,0.00032181,2]
[314904852,1708626633538,-2933.0,0.00032181,2]
[314904853,1708626633547,-2294.0,0.00032181,2]
[314904854,1708626633557,-455.579,0.00032181,2]
[314904855,1708626633566,-397.19248904,0.00032212,2]
[314904856,1708626633576,-397.19248904,0.00032212,2]
[314904857,1708626633586,-397.19248904,0.00032212,2]
[314904858,1708626633595,-397.19248904,0.00032212,2]
[314904859,1708626633604,-397.19248904,0.00032212,2]
[314904860,1708626633614,-397.19248904,0.00032212,2]
[314904861,1708626633623,-397.19248904,0.00032212,2]
[314904862,1708626633632,-397.19248904,0.00032212,2]
[314904863,1708626633642,-397.19248904,0.00032212,2]
[314904864,1708626633651,-397.19248904,0.00032212,2]
[314904865,1708626633660,-397.19248904,0.00032212,2]
[314904866,1708626633670,-397.19248904,0.00032212,2]
[314904867,1708626633680,-397.19248904,0.00032212,2]
[314904868,1708626633690,-397.19248904,0.00032212,2]
[314904869,1708626633699,-397.19248904,0.00032212,2]
[314904870,1708626633709,-397.19248904,0.00032212,2]
[314904871,1708626633720,-397.19248904,0.00032212,2]
[314904872,1708626633730,-397.19248904,0.00032212,2]
[314904873,1708626633739,-397.19248904,0.00032212,2]
[314904874,1708626633749,-397.19248904,0.00032212,2]
[314904875,1708626633758,-5243.31454642,0.00032222,2]
[314904876,1708626633771,-2297.31556633,0.00032222,2]
[314904877,1708626633782,-2462.56452739,0.00032222,2]
[314904878,1708626633794,-862.90197581,0.00032222,2]
[314904879,1708626633808,-16649.48883784,0.00032222,2]
[314904880,1708626633829,-1899.76105155,0.00032222,2]
[314904881,1708626633842,-269.65349466,0.00032222,2]
[314904882,1708626633851,-151.0,0.00032229,2]
[314904883,1708626633861,-506.34,0.00032263,2]
[314904884,1708626633870,-397.19248904,0.00032432,2]
[314904885,1708626633880,-397.19248904,0.00032437,2]
[314904886,1708626633889,-397.19248904,0.00032437,2]
[314904887,1708626633899,-397.19248904,0.00032437,2]
[314904888,1708626633909,-397.19248904,0.00032437,2]
[314904889,1708626633919,-397.19248904,0.00032437,2]
[314904890,1708626633928,-397.19248904,0.00032437,2]
[314904891,1708626633938,-397.19248904,0.00032437,2]
[314904892,1708626633947,-397.19248904,0.00032437,2]
[314904893,1708626633957,-397.19248904,0.00032437,2]
[314904894,1708626633967,-397.19248904,0.00032437,2]
[314904895,1708626633976,-397.19248904,0.00032437,2]
[314904896,1708626633985,-397.19248904,0.00032437,2]
[314904897,1708626633994,-397.19248904,0.00032437,2]
[314904898,1708626634004,-397.19248904,0.00032437,2]
[314904899,1708626634013,-397.19248904,0.00032437,2]
[314904900,1708626634023,-397.19248904,0.00032437,2]
[314904901,1708626634033,-397.19248904,0.00032437,2]
[314904902,1708626634043,-397.19248904,0.00032437,2]
[314904903,1708626634052,-397.19248904,0.00032437,2]
[314904904,1708626634062,-397.19248904,0.00032437,2]
[314904905,1708626634071,-397.19248904,0.00032437,2]
[314904906,1708626634081,-397.19248904,0.00032437,2]
[314904907,1708626634090,-397.19248904,0.00032437,2]
[314904908,1708626634100,-397.19248904,0.00032437,2]
[314904909,1708626634109,-397.19248904,0.00032437,2]
[314904910,1708626634119,-506.34,0.00032442,2]
[314904911,1708626634129,-38678.5818,0.00032447,2]
[314904912,1708626634138,-394.93,0.00032468,2]
[314904913,1708626634148,-397.19248904,0.00032766,2]
[314904914,1708626634157,-397.19248904,0.00032766,2]
[314904915,1708626634166,-397.19248904,0.00032766,2]
[314904916,1708626634176,-397.19248904,0.00032766,2]
[314904917,1708626634186,-397.19248904,0.00032766,2]
[314904918,1708626634196,-397.19248904,0.00032766,2]
[314904919,1708626634205,-397.19248904,0.00032766,2]
[314904920,1708626634215,-397.19248904,0.00032766,2]
[314904921,1708626634225,-397.19248904,0.00032766,2]
[314904922,1708626634236,-397.19248904,0.00032766,2]
[314904923,1708626634246,-397.19248904,0.00032766,2]
[314904924,1708626634255,-397.19248904,0.00032766,2]
[314904925,1708626634265,-397.19248904,0.00032766,2]
[314904926,1708626634274,-397.19248904,0.00032766,2]
[314904927,1708626634284,-397.19248904,0.00032766,2]
[314904928,1708626634293,-397.19248904,0.00032766,2]
[314904929,1708626634303,-397.19248904,0.00032766,2]
[314904930,1708626634315,-20376.1071,0.00032776,3]
[314904931,1708626634324,-4821.83607421,0.00032776,3]
[314904932,1708626634338,-178.16392579,0.00032776,3]
[314904933,1708626634347,-151.0,0.00032777,2]
[314904934,1708626634356,-145.27306322,0.00032864,2]
[314904940,1708626638315,-910.035438,0.00032181,2]
[314904941,1708626638327,-44.964562,0.00032181,2]
[314904942,1708626638337,-710.0,0.00032181,2]
[314904943,1708626638347,-251.91942582,0.00032864,2]
[314904944,1708626638356,-29.10860388,0.00032864,2]
[314904945,1708626638368,-368.08388516,0.00032864,2]
[314904946,1708626638377,-397.19248904,0.00032864,2]
[314904947,1708626638386,-397.19248904,0.00032864,2]
[314904948,1708626638395,-397.19248904,0.00032864,2]
[314904949,1708626638404,-397.19248904,0.00032865,2]
[314904950,1708626638413,-397.19248904,0.00032865,2]
[314904951,1708626638422,-397.19248904,0.00032865,2]
[314904952,1708626638431,-397.19248904,0.00032865,2]
[314904953,1708626638440,-309.81078788,0.00032874,4]
[314904954,1708626638449,-204.39955188,0.00032874,4]
[314904955,1708626638458,-1034.20569649,0.00032874,4]
[314904956,1708626638470,-525.75099758,0.00032874,4]
[314904957,1708626638479,-4895.11962295,0.00032874,4]
[314904958,1708626638489,-1399.58864417,0.00032875,2]
[314904959,1708626638500,-1050.55056104,0.00032875,2]
[314904960,1708626638512,-1408.4248856,0.00032875,2]
[314904961,1708626638523,-1160.99228147,0.00032875,2]
[314904962,1708626638536,-800.92078571,0.00032875,2]
[314904963,1708626638549,-1267.65875993,0.00032875,2]
[314904964,1708626638561,-575.58435544,0.00032875,2]
[314904965,1708626638572,-874.75425095,0.00032875,2]
[314904966,1708626638671,-603.45575644,0.00032875,2]
[314904967,1708626638719,-9500.3091231,0.00032875,2]
[314904968,1708626638733,-91411.77398761,0.00032875,2]
[314904969,1708626638744,-161.85100439,0.00032875,7]
[314904970,1708626638753,-1823.43,0.00032876,2]
[314904971,1708626638762,-512.03977177,0.00032876,2]